[Event "Open NK Rapid 2025 bord 26-50"]
[Site "Helmond, Netherlands"]
[Date "2025.05.03"]
[Round "8.13"]
[White "Husers, Yannic"]
[Black "Seth, Aakrit"]
[Result "1/2-1/2"]
[TimeControl "15 min +5 sec increment"]
[WhiteFideId "1043587"]
[BlackFideId "34604812"]
[WhiteElo "2002"]
[BlackElo "1780"]

1. e4 {[%clk 00:15:08]} c5 {[%clk 00:15:10]} {[%emt 00:00:01]} 2. Nf3 {[%clk
00:15:08]} {[%emt 00:00:05]} d6 {[%clk 00:15:13]} {[%emt 00:00:01]} 3. d4
{[%clk 00:15:07]} {[%emt 00:00:06]} cxd4 {[%clk 00:15:17]} {[%emt 00:00:02]} 4.
Nxd4 {[%clk 00:15:07]} {[%emt 00:00:05]} Nf6 {[%clk 00:15:21]} {[%emt
00:00:01]} 5. Nc3 {[%clk 00:15:05]} {[%emt 00:00:07]} g6 {[%clk 00:15:22]}
{[%emt 00:00:03]} 6. Be3 {[%clk 00:15:00]} {[%emt 00:00:10]} Bg7 {[%clk
00:15:25]} {[%emt 00:00:02]} 7. f3 {[%clk 00:14:47]} {[%emt 00:00:18]} O-O
{[%clk 00:15:26]} {[%emt 00:00:04]} 8. Qd2 {[%clk 00:14:47]} {[%emt 00:00:05]}
Nc6 {[%clk 00:15:29]} {[%emt 00:00:02]} 9. g4 {[%clk 00:14:46]} {[%emt
00:00:06]} Be6 {[%clk 00:15:32]} {[%emt 00:00:02]} 10. h4 {[%clk 00:14:42]}
{[%emt 00:00:10]} d5 {[%clk 00:14:10]} {[%emt 00:01:26]} 11. g5 {[%clk
00:13:18]} {[%emt 00:01:29]} Nh5 {[%clk 00:13:15]} {[%emt 00:01:01]} 12. O-O-O
{[%clk 00:12:47]} {[%emt 00:00:36]} Ng3 {[%clk 00:12:47]} {[%emt 00:00:32]} 13.
Rg1 {[%clk 00:12:19]} {[%emt 00:00:33]} Nxf1 {[%clk 00:12:45]} {[%emt
00:00:07]} 14. Rgxf1 {[%clk 00:12:16]} {[%emt 00:00:08]} Nxd4 {[%clk 00:11:47]}
{[%emt 00:01:03]} 15. Bxd4 {[%clk 00:12:12]} {[%emt 00:00:09]} dxe4 {[%clk
00:10:59]} {[%emt 00:00:53]} 16. Nxe4 {[%clk 00:11:35]} {[%emt 00:00:43]} Bxd4
{[%clk 00:10:24]} {[%emt 00:00:40]} 17. Qxd4 {[%clk 00:11:33]} {[%emt
00:00:07]} Qa5 {[%clk 00:10:22]} {[%emt 00:00:07]} 18. a3 {[%clk 00:11:05]}
{[%emt 00:00:33]} Rac8 {[%clk 00:09:49]} {[%emt 00:00:37]} 19. Qb4 {[%clk
00:10:06]} {[%emt 00:01:02]} Qxb4 {[%clk 00:08:28]} {[%emt 00:01:28]} 20. axb4
{[%emt 00:01:16]} Rc4 {[%clk 00:07:24]} 21. c3 {[%clk 00:09:47]} {[%emt
00:00:23]} Rfc8 {[%clk 00:06:28]} {[%emt 00:01:01]} 22. Kd2 {[%clk 00:09:10]}
{[%emt 00:00:42]} Bf5 {[%clk 00:06:19]} {[%emt 00:00:13]} 23. Ke3 {[%clk
00:09:05]} {[%emt 00:00:10]} Kg7 {[%clk 00:05:49]} {[%emt 00:00:35]} 24. Rf2
{[%clk 00:08:43]} {[%emt 00:00:26]} b6 {[%clk 00:04:35]} {[%emt 00:01:21]} 25.
Ra1 {[%clk 00:08:22]} {[%emt 00:00:26]} Bxe4 {[%clk 00:03:47]} {[%emt
00:00:52]} 26. fxe4 {[%clk 00:08:16]} {[%emt 00:00:11]} R8c7 {[%clk 00:03:50]}
{[%emt 00:00:02]} 27. Rd2 {[%clk 00:07:54]} {[%emt 00:00:27]} f5 {[%clk
00:03:17]} {[%emt 00:00:39]} 28. Rd4 {[%clk 00:06:59]} {[%emt 00:00:59]} Rxd4
{[%clk 00:01:57]} {[%emt 00:01:25]} 29. cxd4 {[%clk 00:06:58]} {[%emt
00:00:07]} fxe4 {[%clk 00:01:59]} {[%emt 00:00:03]} 30. Kxe4 {[%clk 00:06:56]}
{[%emt 00:00:07]} Kf7 {[%clk 00:01:58]} {[%emt 00:00:05]} 31. Ke5 {[%clk
00:06:51]} {[%emt 00:00:10]} Rc4 {[%clk 00:01:21]} {[%emt 00:00:41]} 32. Rxa7
{[%clk 00:06:13]} {[%emt 00:00:44]} Rxb4 {[%clk 00:01:24]} {[%emt 00:00:02]} 33.
Rb7 {[%clk 00:05:54]} {[%emt 00:00:25]} Rxb2 {[%clk 00:01:22]} {[%emt
00:00:06]} 34. d5 {[%clk 00:05:58]} Re2+ {[%clk 00:00:33]} {[%emt 00:00:54]} 35.
Kf4 {[%clk 00:06:02]} {[%emt 00:00:01]} Rd2 {[%clk 00:00:32]} {[%emt 00:00:06]}
36. Ke5 {[%clk 00:06:05]} {[%emt 00:00:03]} Re2+ {[%clk 00:00:35]} {[%emt
00:00:01]} 37. Kd4 {[%clk 00:06:06]} {[%emt 00:00:04]} Rd2+ {[%clk 00:00:26]}
{[%emt 00:00:14]} 38. Kc4 {[%clk 00:06:10]} {[%emt 00:00:01]} Rd1 {[%clk
00:00:17]} {[%emt 00:00:13]} 39. Rxb6 {[%clk 00:06:12]} {[%emt 00:00:05]} Rd2
{[%clk 00:00:20]} {[%emt 00:00:02]} 40. Rb4 {[%clk 00:05:57]} {[%emt 00:00:20]}
Rd1 {[%clk 00:00:21]} {[%emt 00:00:04]} 41. Kc5 {[%clk 00:05:52]} {[%emt
00:00:09]} Rc1+ {[%clk 00:00:19]} {[%emt 00:00:04]} 42. Kd4 {[%clk 00:05:31]}
{[%emt 00:00:30]} Rh1 {[%clk 00:00:19]} {[%emt 00:00:05]} 43. Ke5 {[%clk
00:05:34]} {[%emt 00:00:01]} Re1+ {[%clk 00:00:21]} {[%emt 00:00:03]} 44. Re4
{[%clk 00:05:25]} {[%emt 00:00:13]} Rxe4+ {[%clk 00:00:13]} {[%emt 00:00:14]}
45. Kxe4 {[%clk 00:05:30]} {[%emt 00:00:01]} Ke8 {[%clk 00:00:11]} {[%emt
00:00:06]} 46. Kf4 {[%clk 00:05:20]} {[%emt 00:00:15]} Kd8 {[%clk 00:00:13]}
{[%emt 00:00:03]} 47. Ke3 {[%clk 00:05:04]} {[%emt 00:00:22]} Kd7 {[%clk
00:00:12]} {[%emt 00:00:05]} 48. Ke4 {[%clk 00:05:04]} {[%emt 00:00:05]} Kc7
{[%clk 00:00:09]} {[%emt 00:00:09]} 49. Ke5 {[%clk 00:05:03]} {[%emt 00:00:06]}
Kd7 {[%clk 00:00:13]} {[%emt 00:00:01]} 50. Ke4 {[%clk 00:05:02]} {[%emt
00:00:06]} Kc7 {[%clk 00:00:17]} 51. Kd3 {[%clk 00:05:04]} {[%emt 00:00:02]}
Kd7 {[%clk 00:00:15]} {[%emt 00:00:06]} 52. Kc4 {[%clk 00:05:07]} {[%emt
00:00:04]} Kc7 {[%clk 00:00:17]} {[%emt 00:00:02]} 53. Kc5 {[%clk 00:04:59]}
{[%emt 00:00:13]} Kd7 {[%clk 00:00:21]} {[%emt 00:00:02]} 54. Kc4 {[%clk
00:05:00]} {[%emt 00:00:04]} Kc7 {[%clk 00:00:25]} {[%emt 00:00:01]} 55. Kd3
{[%clk 00:04:55]} {[%emt 00:00:10]} Kd7 {[%clk 00:00:28]} {[%emt 00:00:02]} 56.
Ke4 {[%clk 00:04:59]} {[%emt 00:00:01]} Kc7 {[%clk 00:00:30]} {[%emt 00:00:03]}
57. Ke5 {[%clk 00:04:56]} {[%emt 00:00:08]} Kd7 {[%clk 00:00:33]} {[%emt
00:00:02]} 58. Kf4 {[%clk 00:04:36]} {[%emt 00:00:23]} Kd6 {[%clk 00:00:17]}
{[%emt 00:00:22]} 59. Ke4 {[%clk 00:04:41]} {[%emt 00:00:01]} e5 {[%clk
00:00:21]} {[%emt 00:00:01]} 60. dxe6 {[%clk 00:04:42]} {[%emt 00:00:04]} Kxe6
{[%clk 00:00:25]} 61. Kf4 {[%clk 00:04:46]} {[%emt 00:00:01]} Kd5 {[%clk
00:00:26]} {[%emt 00:00:04]} 62. Kg4 {[%clk 00:04:49]} {[%emt 00:00:03]} Ke4
{[%clk 00:00:30]} 63. h5 {[%clk 00:04:51]} {[%emt 00:00:03]} Ke5 {[%clk
00:00:29]} {[%emt 00:00:05]} 64. hxg6 {[%clk 00:04:42]} {[%emt 00:00:14]} hxg6
{[%clk 00:00:32]} {[%emt 00:00:02]} 65. Kg3 {[%clk 00:04:43]} {[%emt 00:00:05]}
Kf5 {[%clk 00:00:36]} 66. Kh4 {[%clk 00:04:47]} Kf4 {[%clk 00:00:40]} 67. Kh3
{[%clk 00:04:51]} Kxg5 {[%clk 00:00:44]} 68. Kg3 {[%clk 00:04:56]} Kf5 {[%clk
00:00:44]} {[%emt 00:00:05]} 69. Kf3 {[%clk 00:05:00]} g5 {[%clk 00:00:48]} 70.
Kg3 {[%clk 00:05:04]} {[%emt 00:00:01]} Ke5 {[%clk 00:15:05]} {[%emt 00:00:07]}
1/2-1/2

[Event "Open NK Rapid 2025 bord 26-50"]
[Site "Helmond, Netherlands"]
[Date "2025.05.03"]
[Round "8.14"]
[White "Van Beek, Harmen"]
[Black "Den Heijer, Rolinde"]
[Result "0-1"]
[TimeControl "15 min +5 sec increment"]
[WhiteFideId "40100022"]
[BlackFideId "1068300"]
[WhiteElo "1806"]
[BlackElo "1991"]

1. e4 {[%clk 00:15:07]} {[%emt 00:00:03]} c5 {[%clk 00:15:09]} {[%emt
00:00:01]} 2. Nf3 {[%clk 00:15:03]} {[%emt 00:00:09]} d6 {[%clk 00:15:13]}
{[%emt 00:00:01]} 3. Bb5+ {[%clk 00:15:04]} {[%emt 00:00:05]} Bd7 {[%clk
00:15:15]} {[%emt 00:00:02]} 4. a4 {[%clk 00:14:45]} {[%emt 00:00:24]} a6
{[%clk 00:15:13]} {[%emt 00:00:08]} 5. Bxd7+ {[%clk 00:14:44]} {[%emt
00:00:06]} Nxd7 {[%clk 00:15:13]} {[%emt 00:00:04]} 6. O-O {[%clk 00:14:45]}
{[%emt 00:00:04]} Ngf6 {[%clk 00:15:14]} {[%emt 00:00:04]} 7. Re1 {[%clk
00:14:38]} {[%emt 00:00:11]} g6 {[%clk 00:14:47]} {[%emt 00:00:33]} 8. d4
{[%clk 00:14:12]} {[%emt 00:00:31]} cxd4 {[%clk 00:14:29]} {[%emt 00:00:23]} 9.
Nxd4 {[%clk 00:14:15]} {[%emt 00:00:02]} Bg7 {[%clk 00:14:29]} {[%emt
00:00:05]} 10. c3 {[%clk 00:13:24]} {[%emt 00:00:57]} O-O {[%clk 00:14:28]}
{[%emt 00:00:05]} 11. f3 {[%clk 00:12:28]} {[%emt 00:01:01]} Rc8 {[%clk
00:14:24]} {[%emt 00:00:09]} 12. Be3 {[%clk 00:12:21]} {[%emt 00:00:12]} Ne5
{[%clk 00:14:23]} {[%emt 00:00:06]} 13. Nd2 {[%clk 00:11:56]} {[%emt 00:00:30]}
Qc7 {[%clk 00:14:03]} {[%emt 00:00:24]} 14. Qe2 {[%clk 00:10:43]} {[%emt
00:01:19]} Rfd8 {[%clk 00:13:50]} {[%emt 00:00:18]} 15. Red1 {[%clk 00:10:07]}
{[%emt 00:00:42]} d5 {[%clk 00:13:28]} {[%emt 00:00:26]} 16. Bf2 {[%clk
00:09:35]} {[%emt 00:00:37]} dxe4 {[%clk 00:13:14]} {[%emt 00:00:19]} 17. Nxe4
{[%clk 00:09:33]} {[%emt 00:00:07]} Nh5 {[%clk 00:12:59]} {[%emt 00:00:20]} 18.
Ng3 {[%clk 00:07:39]} {[%emt 00:02:00]} Nf4 {[%clk 00:12:47]} {[%emt 00:00:16]}
19. Qe4 {[%clk 00:07:05]} {[%emt 00:00:39]} Nc4 {[%clk 00:12:26]} {[%emt
00:00:27]} 20. Nge2 {[%clk 00:06:38]} {[%emt 00:00:31]} Nxb2 {[%clk 00:11:29]}
{[%emt 00:01:03]} 21. Rdb1 {[%clk 00:06:21]} {[%emt 00:00:21]} Nxe2+ {[%clk
00:10:21]} {[%emt 00:01:12]} 22. Nxe2 {[%clk 00:06:23]} {[%emt 00:00:04]} Rd2
{[%clk 00:08:24]} {[%emt 00:02:02]} 23. Be1 {[%clk 00:04:14]} {[%emt 00:02:14]}
Qc5+ {[%clk 00:07:34]} {[%emt 00:00:56]} 24. Kh1 {[%clk 00:03:56]} {[%emt
00:00:22]} Nd3 {[%clk 00:06:53]} {[%emt 00:00:47]} 25. Rd1 {[%clk 00:02:22]}
{[%emt 00:01:39]} Rxd1 {[%clk 00:06:31]} {[%emt 00:00:26]} 26. Rxd1 {[%clk
00:02:23]} {[%emt 00:00:04]} Nxe1 {[%clk 00:06:28]} {[%emt 00:00:09]} 27. Rxe1
{[%clk 00:02:27]} {[%emt 00:00:01]} b6 {[%clk 00:06:16]} {[%emt 00:00:17]} 28.
Qd3 {[%clk 00:01:39]} {[%emt 00:00:53]} b5 {[%clk 00:05:59]} {[%emt 00:00:22]}
29. axb5 {[%clk 00:01:40]} {[%emt 00:00:03]} axb5 {[%clk 00:06:02]} {[%emt
00:00:02]} 30. Rb1 {[%clk 00:01:13]} {[%emt 00:00:32]} Rb8 {[%clk 00:05:58]}
{[%emt 00:00:09]} 31. h3 {[%clk 00:00:49]} {[%emt 00:00:29]} Be5 {[%clk
00:05:55]} {[%emt 00:00:09]} 32. f4 {[%clk 00:00:33]} {[%emt 00:00:21]} Bd6
{[%clk 00:05:54]} {[%emt 00:00:06]} 33. Rc1 {[%clk 00:00:21]} {[%emt 00:00:17]}
Qf2 {[%clk 00:05:47]} {[%emt 00:00:11]} 34. Rg1 {[%clk 00:00:06]} {[%emt
00:00:20]} Bxf4 {[%clk 00:05:33]} {[%emt 00:00:19]} 35. Nxf4 {[%clk 00:00:09]}
{[%emt 00:00:03]} Qxf4 {[%clk 00:05:36]} {[%emt 00:00:01]} 36. Re1 {[%clk
00:00:11]} {[%emt 00:00:03]} e6 {[%clk 00:05:34]} {[%emt 00:00:07]} 37. Re4
{[%clk 00:00:13]} {[%emt 00:00:04]} Qc7 {[%clk 00:05:31]} {[%emt 00:00:08]} 38.
Rb4 {[%clk 00:00:16]} {[%emt 00:00:02]} Rd8 {[%clk 00:05:10]} {[%emt 00:00:25]}
39. Rd4 {[%clk 00:00:10]} {[%emt 00:00:11]} Ra8 {[%clk 00:05:06]} {[%emt
00:00:09]} 40. Qd1 {[%clk 00:00:06]} {[%emt 00:00:09]} Qxc3 {[%clk 00:04:55]}
{[%emt 00:00:16]} 41. Rd3 {[%clk 00:00:08]} {[%emt 00:00:03]} Qf6 {[%clk
00:04:54]} {[%emt 00:00:06]} 42. Rf3 {[%clk 00:00:06]} {[%emt 00:00:07]} Ra1
{[%clk 00:04:31]} {[%emt 00:00:28]} 0-1

[Event "Open NK Rapid 2025 bord 26-50"]
[Site "Helmond, Netherlands"]
[Date "2025.05.03"]
[Round "8.15"]
[White "Kolijn, David"]
[Black "Torn, Daniel"]
[Result "1-0"]
[TimeControl "15 min +5 sec increment"]
[WhiteFideId "1099213"]
[BlackFideId "1074490"]
[WhiteElo "1812"]
[BlackElo "1966"]

1. e4 {[%clk 00:15:07]} {[%emt 00:00:03]} c5 {[%clk 00:15:09]} {[%emt
00:00:02]} 2. Nf3 {[%clk 00:15:10]} {[%emt 00:00:02]} Nc6 {[%clk 00:15:10]}
{[%emt 00:00:04]} 3. Bb5 {[%clk 00:15:12]} {[%emt 00:00:02]} g6 {[%clk
00:15:05]} {[%emt 00:00:10]} 4. Bxc6 {[%clk 00:15:12]} {[%emt 00:00:05]} bxc6
{[%clk 00:15:05]} {[%emt 00:00:06]} 5. c3 {[%clk 00:14:47]} {[%emt 00:00:30]}
Bg7 {[%clk 00:15:04]} {[%emt 00:00:05]} 6. d4 {[%clk 00:14:41]} {[%emt
00:00:11]} cxd4 {[%clk 00:14:54]} {[%emt 00:00:16]} 7. cxd4 {[%clk 00:14:44]}
{[%emt 00:00:02]} Ba6 {[%clk 00:13:32]} {[%emt 00:01:27]} 8. Qa4 {[%clk
00:12:11]} {[%emt 00:02:38]} Bb5 {[%clk 00:13:28]} {[%emt 00:00:08]} 9. Qa3
{[%clk 00:11:51]} {[%emt 00:00:25]} a5 {[%clk 00:12:26]} {[%emt 00:01:07]} 10.
Nc3 {[%clk 00:11:29]} {[%emt 00:00:27]} Ba6 {[%clk 00:12:25]} {[%emt 00:00:07]}
11. Be3 {[%clk 00:10:07]} {[%emt 00:01:26]} Nf6 {[%clk 00:12:26]} {[%emt
00:00:05]} 12. h3 {[%clk 00:09:47]} {[%emt 00:00:25]} O-O {[%clk 00:12:14]}
{[%emt 00:00:17]} 13. e5 {[%clk 00:09:26]} {[%emt 00:00:26]} Nd5 {[%clk
00:12:13]} {[%emt 00:00:06]} 14. Nxd5 {[%clk 00:09:25]} {[%emt 00:00:06]} cxd5
{[%clk 00:12:13]} {[%emt 00:00:05]} 15. O-O-O {[%clk 00:07:17]} {[%emt
00:02:13]} Qb6 {[%clk 00:11:34]} {[%emt 00:00:43]} 16. Kb1 {[%clk 00:06:23]}
{[%emt 00:00:59]} Rab8 {[%clk 00:11:05]} {[%emt 00:00:35]} 17. Nd2 {[%clk
00:05:07]} {[%emt 00:01:21]} Rfc8 {[%clk 00:10:23]} {[%emt 00:00:47]} 18. Nb3
{[%clk 00:04:12]} {[%emt 00:00:59]} e6 {[%clk 00:10:09]} {[%emt 00:00:20]} 19.
Qxa5 {[%clk 00:03:21]} {[%emt 00:00:56]} Qa7 {[%clk 00:09:30]} {[%emt
00:00:44]} 20. Ka1 {[%clk 00:02:27]} {[%emt 00:01:00]} Rb5 {[%clk 00:09:15]}
{[%emt 00:00:19]} 21. Qa3 {[%clk 00:01:47]} {[%emt 00:00:45]} Bf8 {[%clk
00:05:10]} {[%emt 00:04:10]} 22. Nc5 {[%clk 00:01:50]} {[%emt 00:00:02]} Rb6
{[%clk 00:04:52]} {[%emt 00:00:23]} 23. Qa4 {[%clk 00:00:41]} {[%emt 00:01:13]}
Ra8 {[%clk 00:03:31]} {[%emt 00:01:28]} 24. Rc1 {[%clk 00:00:08]} {[%emt
00:00:37]} Bc4 {[%clk 00:03:01]} {[%emt 00:00:34]} 25. Qxa7 {[%clk 00:00:12]}
{[%emt 00:00:02]} Rxa7 {[%clk 00:03:04]} {[%emt 00:00:01]} 26. a3 {[%clk
00:00:15]} {[%emt 00:00:03]} d6 {[%clk 00:02:35]} {[%emt 00:00:34]} 27. exd6
{[%clk 00:00:19]} {[%emt 00:00:01]} Bxd6 {[%clk 00:02:38]} {[%emt 00:00:02]} 28.
g3 {[%clk 00:00:12]} {[%emt 00:00:12]} Kg7 {[%clk 00:02:27]} {[%emt 00:00:16]}
29. h4 {[%clk 00:00:14]} {[%emt 00:00:02]} h5 {[%clk 00:02:04]} {[%emt
00:00:28]} 30. Rhe1 {[%clk 00:00:11]} {[%emt 00:00:08]} Rc7 {[%clk 00:01:49]}
{[%emt 00:00:19]} 31. Rc2 {[%clk 00:00:09]} {[%emt 00:00:08]} Bxc5 {[%clk
00:01:48]} {[%emt 00:00:06]} 32. dxc5 {[%clk 00:00:12]} {[%emt 00:00:02]} Rxc5
{[%clk 00:01:51]} {[%emt 00:00:02]} 33. Bxc5 {[%clk 00:00:16]} {[%emt
00:00:01]} 1-0

[Event "Open NK Rapid 2025 bord 26-50"]
[Site "Helmond, Netherlands"]
[Date "2025.05.03"]
[Round "8.16"]
[White "Darie, Aden"]
[Black "Demenko, Olexandr"]
[Result "1-0"]
[TimeControl "15 min +5 sec increment"]
[WhiteFideId "1094831"]
[BlackFideId "34118659"]
[WhiteElo "1941"]
[BlackElo "1735"]

1. Nc3 {[%clk 00:15:07]} {[%emt 00:00:02]} Nc6 {[%emt 00:00:07]} 2. Nf3 {[%clk
00:14:55]} {[%emt 00:00:12]} f5 {[%clk 00:15:11]} {[%emt 00:00:02]} 3. e4
{[%clk 00:14:51]} {[%emt 00:00:09]} e5 {[%clk 00:14:54]} {[%emt 00:00:22]} 4.
d4 {[%clk 00:14:45]} {[%emt 00:00:10]} exd4 {[%clk 00:14:38]} {[%emt 00:00:22]}
5. Nxd4 {[%clk 00:14:42]} {[%emt 00:00:07]} fxe4 {[%clk 00:13:52]} {[%emt
00:00:51]} 6. Qh5+ {[%clk 00:14:01]} {[%emt 00:00:46]} g6 {[%clk 00:13:51]}
{[%emt 00:00:06]} 7. Nxc6 {[%clk 00:13:49]} {[%emt 00:00:17]} gxh5 {[%clk
00:13:11]} {[%emt 00:00:45]} 8. Nxd8 {[%clk 00:13:50]} {[%emt 00:00:04]} Kxd8
{[%clk 00:13:14]} {[%emt 00:00:03]} 9. Bg5+ {[%clk 00:13:48]} {[%emt 00:00:06]}
Be7 {[%clk 00:13:17]} {[%emt 00:00:03]} 10. Nxe4 {[%clk 00:13:43]} {[%emt
00:00:09]} d5 {[%clk 00:13:11]} {[%emt 00:00:12]} 11. O-O-O {[%clk 00:13:43]}
{[%emt 00:00:04]} c6 {[%emt 00:00:41]} 12. c4 {[%clk 00:13:12]} Bf5 {[%clk
00:12:34]} {[%emt 00:00:43]} 13. Bxe7+ {[%clk 00:13:07]} {[%emt 00:00:09]} Kxe7
{[%clk 00:12:24]} {[%emt 00:00:17]} 14. Ng3 {[%clk 00:13:03]} {[%emt 00:00:06]}
Be6 {[%clk 00:12:07]} {[%emt 00:00:23]} 15. cxd5 {[%clk 00:13:04]} {[%emt
00:00:04]} Bxd5 {[%clk 00:12:10]} {[%emt 00:00:03]} 16. Be2 {[%clk 00:12:33]}
{[%emt 00:00:35]} h4 {[%clk 00:11:08]} {[%emt 00:01:08]} 17. Nf5+ {[%clk
00:12:31]} {[%emt 00:00:07]} Kf6 {[%clk 00:10:52]} {[%emt 00:00:18]} 18. Nxh4
{[%clk 00:12:32]} {[%emt 00:00:06]} Re8 {[%clk 00:10:47]} {[%emt 00:00:09]} 19.
Bf3 {[%clk 00:12:19]} {[%emt 00:00:19]} Bxa2 {[%clk 00:10:21]} {[%emt
00:00:32]} 20. Rd7 {[%clk 00:12:08]} {[%emt 00:00:14]} Re7 {[%clk 00:10:23]}
{[%emt 00:00:04]} 21. Rd8 {[%clk 00:12:10]} {[%emt 00:00:03]} Bd5 {[%clk
00:09:21]} {[%emt 00:01:08]} 22. Bxd5 {[%clk 00:12:05]} {[%emt 00:00:09]} cxd5
{[%clk 00:09:24]} {[%emt 00:00:02]} 23. Rd1 {[%clk 00:12:02]} {[%emt 00:00:07]}
Rc7+ {[%clk 00:08:44]} {[%emt 00:00:47]} 24. Kb1 {[%clk 00:12:02]} {[%emt
00:00:04]} Kg7 {[%clk 00:08:41]} {[%emt 00:00:08]} 25. Nf5+ {[%clk 00:11:55]}
{[%emt 00:00:12]} Kf7 {[%clk 00:07:21]} {[%emt 00:01:26]} 26. R1xd5 {[%clk
00:11:45]} {[%emt 00:00:14]} h5 {[%clk 00:07:23]} {[%emt 00:00:03]} 27. Ng3
{[%clk 00:11:21]} {[%emt 00:00:29]} Nf6 {[%clk 00:05:01]} {[%emt 00:02:28]} 28.
Rxh8 {[%clk 00:11:15]} {[%emt 00:00:10]} Nxd5 {[%clk 00:05:03]} {[%emt
00:00:03]} 29. Rxh5 {[%clk 00:11:16]} {[%emt 00:00:03]} Ke6 {[%clk 00:05:03]}
{[%emt 00:00:05]} 30. h4 {[%clk 00:11:11]} {[%emt 00:00:11]} Nb4 {[%clk
00:04:02]} {[%emt 00:01:06]} 31. Rb5 {[%clk 00:10:56]} {[%emt 00:00:20]} Nd3
{[%clk 00:03:56]} {[%emt 00:00:11]} 32. Ne4 {[%clk 00:10:29]} {[%emt 00:00:32]}
a6 {[%clk 00:03:07]} {[%emt 00:00:53]} 33. Rb6+ {[%clk 00:10:10]} {[%emt
00:00:25]} Ke5 {[%clk 00:02:56]} {[%emt 00:00:16]} 34. f3 {[%clk 00:10:13]}
{[%emt 00:00:02]} Rc1+ {[%clk 00:02:28]} {[%emt 00:00:34]} 35. Ka2 {[%clk
00:10:15]} {[%emt 00:00:02]} Rg1 {[%clk 00:02:30]} {[%emt 00:00:02]} 36. Rg6
{[%clk 00:10:01]} {[%emt 00:00:20]} a5 {[%clk 00:01:58]} {[%emt 00:00:38]} 37.
h5 {[%clk 00:09:56]} {[%emt 00:00:09]} b5 {[%clk 00:01:59]} {[%emt 00:00:04]}
38. Rg5+ {[%clk 00:09:54]} {[%emt 00:00:06]} Kf4 {[%emt 00:00:24]} 39. Rxb5
{[%clk 00:09:32]} {[%emt 00:00:16]} Rxg2 {[%clk 00:01:56]} {[%emt 00:00:02]} 40.
Nc5 {[%clk 00:09:04]} {[%emt 00:00:32]} Nxc5 {[%clk 00:01:37]} {[%emt
00:00:24]} 41. Rxc5 {[%clk 00:09:07]} {[%emt 00:00:02]} Kxf3 {[%clk 00:01:40]}
{[%emt 00:00:02]} 42. Rxa5 {[%clk 00:09:10]} {[%emt 00:00:02]} Ke4 {[%clk
00:01:43]} {[%emt 00:00:02]} 43. Rc5 {[%clk 00:09:13]} {[%emt 00:00:02]} Kd4
{[%clk 00:01:47]} {[%emt 00:00:02]} 44. Rc8 {[%clk 00:09:06]} {[%emt 00:00:10]}
Rh2 {[%emt 00:00:40]} 45. Rh8 {[%clk 00:08:55]} Ke5 {[%clk 00:00:44]} {[%emt
00:00:50]} 46. h6 {[%clk 00:06:54]} {[%emt 00:02:06]} Kf6 {[%emt 00:00:03]} 47.
h7 {[%clk 00:06:37]} {[%emt 00:00:20]} Kg7 {[%clk 00:00:52]} {[%emt 00:00:01]}
48. Rg8+ {[%clk 00:06:41]} {[%emt 00:00:01]} Kxh7 {[%clk 00:00:55]} {[%emt
00:00:01]} 49. Rg1 {[%clk 00:06:43]} {[%emt 00:00:02]} Rd2 {[%clk 00:00:46]}
{[%emt 00:00:15]} 50. Ka3 {[%clk 00:06:46]} {[%emt 00:00:02]} Rd8 {[%clk
00:00:48]} {[%emt 00:00:03]} 51. b4 {[%clk 00:06:48]} {[%emt 00:00:03]} Ra8+
{[%clk 00:00:52]} {[%emt 00:00:02]} 52. Kb3 {[%clk 00:06:50]} {[%emt 00:00:02]}
Rd8 {[%clk 00:00:55]} {[%emt 00:00:02]} 53. b5 {[%clk 00:06:44]} {[%emt
00:00:11]} Rd4 {[%clk 00:00:56]} {[%emt 00:00:04]} 54. Kc3 {[%clk 00:06:41]}
{[%emt 00:00:08]} Re4 {[%clk 00:00:59]} {[%emt 00:00:02]} 55. Rd1 {[%clk
00:06:02]} {[%emt 00:00:43]} Kg7 {[%clk 00:01:01]} {[%emt 00:00:04]} 56. Rd4
{[%clk 00:06:06]} Re5 {[%clk 00:00:56]} {[%emt 00:00:11]} 57. Kc4 {[%clk
00:06:07]} {[%emt 00:00:03]} Kf7 {[%clk 00:00:59]} {[%emt 00:00:01]} 58. Rd5
{[%clk 00:06:10]} {[%emt 00:00:03]} Re1 {[%clk 00:00:37]} {[%emt 00:00:28]} 59.
b6 {[%clk 00:06:09]} {[%emt 00:00:06]} Ke6 {[%clk 00:00:36]} {[%emt 00:00:05]}
60. Rd2 {[%clk 00:05:32]} {[%emt 00:00:42]} Re5 {[%clk 00:00:39]} {[%emt
00:00:02]} 61. Rd8 {[%clk 00:05:31]} {[%emt 00:00:06]} Re4+ {[%clk 00:00:21]}
{[%emt 00:00:24]} 62. Kc5 {[%clk 00:05:29]} {[%emt 00:00:06]} Ke7 {[%clk
00:00:18]} {[%emt 00:00:08]} 63. b7 {[%clk 00:05:23]} {[%emt 00:00:12]} Re5+
{[%clk 00:00:22]} {[%emt 00:00:01]} 64. Rd5 {[%clk 00:05:22]} {[%emt 00:00:05]}
Re6 {[%clk 00:00:06]} {[%emt 00:00:21]} 65. b8=Q {[%clk 00:05:14]} {[%emt
00:00:14]} Re1 {[%clk 00:00:08]} {[%emt 00:00:03]} 66. Qb7+ {[%clk 00:05:02]}
{[%emt 00:00:17]} Kf6 {[%clk 00:00:09]} {[%emt 00:00:03]} 67. Qc6+ {[%clk
00:05:04]} {[%emt 00:00:03]} Re6 {[%clk 00:00:13]} {[%emt 00:00:02]} 68. Rd6
{[%clk 00:05:06]} {[%emt 00:00:02]} Kg7 {[%clk 00:00:16]} {[%emt 00:00:02]} 69.
Qd7+ {[%clk 00:05:08]} {[%emt 00:00:03]} Kf8 {[%clk 00:00:19]} {[%emt
00:00:02]} 70. Rxe6 {[%clk 00:05:02]} {[%emt 00:00:11]} Kg8 {[%clk 00:00:23]}
{[%emt 00:00:01]} 71. Re8# {[%clk 00:05:03]} {[%emt 00:00:04]} 1-0